Workbook

Sheet Einbringungsquote (aktuell J.)
B5: Aufteilung eingebrachtes Vermögen nach Wertsteigerung /Wertverlust; Variante: strikt getrennte Bewertung von Grund und Haus
B7: Teilungsquoten für ehelichen Zugewinn:
B9: Mann | C9: 0.5
B10: Frau | C10: =1-C9 -> 0.5
B12: Variante 1 (gemeinsame Bewertung Haus und Grund) | E12: Variante 2 (getrennte Bewertung Haus und Grund)
B14: ursprüngliche Werte | E14: ursprüngliche Werte
B15: Geld eingebracht vom Mann oder Verwandten des Mannes | C15: 0 | E15: Geld eingebracht vom Mann oder Verwandten des Mannes | F15: =C15 -> 0
B16: Grundstück eingebracht von Mann oder Verwandten des Mannes | C16: 0 | E16: Grundstück eingebracht von Mann oder Verwandten des Mannes | F16: =C16 -> 0
B17: Geld eingebracht von Frau oder Verwandten der Frau | C17: 0 | E17: Geld eingebracht von Frau oder Verwandten der Frau | F17: 0
B18: Grundstück eingebracht von Frau oder Verwandten der Frau | C18: 150000 | E18: Grundstück eingebracht von Frau oder Verwandten der Frau | F18: 150000
B19: Hauserrichtungskosten ohne Grundstück | C19: 450000 | E19: Hauserrichtungskosten ohne Grundstück | F19: 450000
B20: Hauserrichtungskosten mit Grundstück | C20: =C19+C16+C18 -> 600000 | E20: Hauserrichtungskosten mit Grundstück | F20: 600000
B23: Aktuelle Werte | E23: Aktuelle Werte
B24: Haus mit Grundstück aktueller Wert | C24: 1200000 | E24: Haus mit Grundstück aktueller Wert | F24: 1200000
B25: Haus ohne Grundstück aktueller Wert | C25: 800000 | E25: Haus ohne Grundstück aktueller Wert | F25: 800000
B26: unbebautes Grundstück ohne Haus aktueller Wert | C26: 400000 | E26: unbebautes Grundstück ohne Haus aktueller Wert | F26: 400000
B27: Schulden für Haus | C27: -150000 | E27: Schulden für Haus | F27: -150000
B29: Wertzuwachs nur Grund in Prozenten | C29: =IF(C15+C18=0,1,C26/(C16+C18)) -> 2.666666667 | E29: Wertzuwachs nur Grund in Prozenten | F29: =C29 -> 2.666666667
B30: Wertzuwachs nur Haus in Prozenten | C30: =C25/C19 -> 1.777777778 | E30: Wertzuwachs nur Haus in Prozenten | F30: =C30 -> 1.777777778
B31: Wertzuwachs Haus und Grund gemeinsam in Prozenten | C31: =C24/C20 -> 2 | E31: Wertzuwachs Haus und Grund gemeinsam in Prozenten | F31: =C31 -> 2
B33: Auf- oder Abwertung der eingebrachten Beträge: | E33: Auf- oder Abwertung der eingebrachten Beträge:
B35: Hyperocha | E35: Hyperocha | F35: =F24+F27 -> 1050000
B36: Vorwegzuteilung an Mann für eingebrachtes Vermögen | C36: =(C15+C16)/C20*(C24+C27) -> 0 | E36: Vorwegzuteilung an Mann für eingebrachtes Vermögen | F36: =(C26*C41)+C15*C30 -> 0
B37: Vorwegzuteilung an Frau für eingebrachtes Vermögen | C37: =(C17+C18)/C20*C24 -> 300000 | E37: Vorwegzuteilung an Frau für eingebrachtes Vermögen | F37: =(C26*C42)+C17*C30 -> 400000
B39: Teilungsquoten: | E39: Teilungsquoten:
B41: Anteil Mann Grund | C41: =C16/(C16+C18) -> 0 | E41: Anteil Mann Grund | F41: =C41 -> 0
B42: Anteil Frau Grund | C42: =C18/(C16+C18) -> 1 | E42: Anteil Frau Grund | F42: =C42 -> 1
B43: Anteil Mann Haus Errichtungskosten | C43: =C15/C19 -> 0 | E43: Anteil Mann Haus Errichtungskosten | F43: 0
B44: Anteil Frau Haus Errichtungskosten | C44: =C17/(C19) -> 0 | E44: Anteil Frau Haus Errichtungskosten | F44: 0
B46: Anteil Mann an Gesamtkosten (Grund UND Haus) | C46: =(BC15+C16)/C20 -> 0
B47: Anteil Frau an Gesamtkosten (Grund UND Haus) | C47: =(C18+C17)/C20 -> 0.25
B49: aufzuteilen | C49: =C24+C27-C36-C37 -> 750000 | E49: aufzuteilen | F49: =F35-F36-F37 -> 650000
B50: Aufteilungsanteil Mann | C50: =$C$49*$C$9 -> 375000 | E50: Aufteilungsanteil Mann | F50: =$F$49*$C$9 -> 325000
B51: Aufteilungsanteil Frau | C51: =$C$49*$C$10 -> 375000 | E51: Aufteilungsanteil Frau | F51: =$F$49*$C$10 -> 325000
B53: Mann übernimmt Haus und Schulden: | E53: Mann übernimmt Haus und Schulden:
B55: Ausgleichszahlung an Frau | C55: =C51+C37 -> 675000 | E55: Ausgleichszahlung an Frau | F55: =F37+F51 -> 725000
B57: Frau übernimmt Haus und Schulden: | E57: Frau übernimmt Haus und Schulden:
B59: Ausgleichszahlung an Mann | C59: =$C$36+$C$50 -> 375000 | E59: Ausgleichszahlung an Mann | F59: =F51+F36 -> 325000
B61: Kontrollrechnung Mann: | E61: Kontrollrechnung Mann:
B63: Schulden | C63: =C27 -> -150000 | E63: Schulden | F63: =F27 -> -150000
B64: Zahlung an Frau | C64: =C55 -> 675000 | E64: Zahlung an Frau | F64: =F55 -> 725000
B65: Aufteilungsanteil Mann | C65: =C51 -> 375000 | E65: Aufteilungsanteil Mann | F65: =F51 -> 325000
B66: Vorwegbezug Mann | C66: =$C$36 -> 0 | E66: Vorwegbezug Mann | F66: =F36 -> 0
B67: Summe | C67: =C63*-1+C64+C65+C66 -> 1200000 | E67: Summe | F67: =F63*-1+F64+F65+F66 -> 1200000
B69: Kontrollrechnung Frau: | E69: Kontrollrechnung Frau:
B71: Schulden | C71: =C27 -> -150000 | E71: Schulden | F71: =F27 -> -150000
B72: Zahlung an Mann | C72: =C59 -> 375000 | E72: Zahlung an Mann | F72: =F59 -> 325000
B73: Aufteilungsanteil Frau | C73: =C51 -> 375000 | E73: Aufteilungsanteil Frau | F73: =F51 -> 325000
B74: Vorwegbezug Frau | C74: =C37 -> 300000 | E74: Vorwegbezug Frau | F74: =F37 -> 400000
B75: Summe | C75: =C71*-1+C72+C73+C74 -> 1200000 | E75: Summe | F75: =F71*-1+F72+F73+F74 -> 1200000
B77: Entscheidungen:
B79: mit Anklicken können die Entscheidungen im RIS aufgerufen werden
B81: OGH 25.06.2019, 1 Ob 97/19z
B82: OGH 19.06.2018, 1 Ob 89/18x
B83: OGH 30.04.2018, 1 Ob 64/18w
B84: OGH 20.01.2020, 1 Ob 142/19t
B85: OGH 23.03.2021, 1 Ob 6/21w (Wertminderung; gemeinsame Bewertung)
B86: OGH 21.04.2021, 1 Ob 35/21k (Wertminderung)
B88: LG Wels 13.09.2019, 21 R 300/18v (getrennte Bewertung)
B90: Kennwort Aufhebung Sperre: gesperrt
